bitfinex/quotes_BTCUSD_20230118
["timestamp","ask_amount","ask_price","bid_price","bid_amount"]
[1674007356625,0.18591051,21242.0,21241.0,1.04300498]
[1674007357137,0.18591051,21242.0,21241.0,2.04428075]
[1674007357372,0.18591051,21242.0,21241.0,1.9088689]
[1674007357611,0.18584513,21242.0,21241.0,1.9088689]
[1674007357859,0.18584513,21242.0,21241.0,1.6088689]
[1674007358107,0.18584513,21242.0,21241.0,1.9088689]
[1674007358378,0.18584513,21242.0,21241.0,1.6088689]
[1674007358596,0.18584513,21242.0,21241.0,1.9088689]
[1674007359321,0.18584513,21242.0,21241.0,2.76849841]
[1674007359573,0.18584513,21242.0,21241.0,2.65641018]
[1674007360675,0.17884513,21242.0,21241.0,2.04691018]
[1674007360976,0.17984513,21242.0,21241.0,2.12491018]
[1674007361498,0.17984513,21242.0,21241.0,1.71860826]
[1674007362580,0.17984513,21242.0,21241.0,1.64320826]
[1674007362829,0.17884513,21242.0,21241.0,1.56520826]
[1674007363615,0.17984513,21242.0,21241.0,1.64420826]
[1674007365913,0.17984513,21242.0,21241.0,2.01960826]
[1674007366440,0.17984513,21242.0,21241.0,1.94060826]
[1674007366441,0.17884513,21242.0,21241.0,1.94060826]
[1674007366704,0.17984513,21242.0,21241.0,2.01860826]
[1674007366963,0.17984513,21242.0,21241.0,1.71860826]
[1674007367734,0.17984513,21242.0,21241.0,2.42491018]
[1674007371192,0.17984513,21242.0,21241.0,2.01860826]
[1674007371999,0.17984513,21242.0,21241.0,1.71860826]
[1674007372254,0.17984513,21242.0,21241.0,2.01860826]
[1674007373334,0.17984513,21242.0,21241.0,1.7187704]
[1674007375219,0.17984513,21242.0,21241.0,1.2479834]
[1674007375664,0.17984513,21242.0,21241.0,1.1725834]
[1674007375925,0.17984513,21242.0,21241.0,1.6433704]
[1674007376202,0.16984513,21242.0,21241.0,1.6433704]
[1674007377783,0.16984513,21242.0,21241.0,1.64320826]
[1674007378504,0.16884513,21242.0,21241.0,1.48104626]
[1674007378719,0.16884513,21242.0,21241.0,1.56520826]
[1674007378982,0.17084513,21242.0,21241.0,1.63720826]
[1674007379489,0.16884513,21242.0,21241.0,1.56520826]
[1674007379742,0.17084513,21242.0,21241.0,1.63720826]
[1674007380008,0.17084513,21242.0,21241.0,0.07533098]
[1674007380009,0.17132203,21242.0,21241.0,0.07533098]
[1674007381579,0.17084513,21242.0,21241.0,0.07533098]
[1674007383643,0.17084513,21242.0,21241.0,0.07589753]
[1674007383937,0.16684513,21242.0,21241.0,0.07589753]
[1674007384481,0.63761013,21242.0,21241.0,0.07589753]
[1674007384740,1.11687513,21242.0,21241.0,0.07589753]
[1674007384996,1.43832013,21242.0,21241.0,0.07589753]
[1674007386167,1.43632013,21242.0,21241.0,0.00389753]
[1674007386739,1.61232013,21242.0,21241.0,0.00989753]
[1674007387283,2.8977539,21242.0,21241.0,0.00989753]
[1674007387542,3.60453272,21242.0,21241.0,0.00989753]
[1674007387801,2.8982308,21242.0,21241.0,0.14530938]
[1674007388054,1.80007949,21242.0,21241.0,0.00989753]
[1674007388564,1.53739703,21242.0,21241.0,0.00989753]
[1674007388826,1.46279703,21242.0,21241.0,0.00989753]
[1674007389095,0.19934513,21242.0,21241.0,0.00989753]
[1674007389954,0.19084513,21242.0,21241.0,0.00989753]
[1674007390498,0.66161013,21242.0,21241.0,0.00989753]
[1674007390763,0.98353203,21242.0,21241.0,0.00989753]
[1674007391019,0.66208703,21242.0,21241.0,0.00989753]
[1674007391314,0.98353203,21242.0,21241.0,0.00989753]
[1674007392101,1.45429703,21242.0,21241.0,0.00989753]
[1674007392698,1.13285203,21242.0,21241.0,0.00989753]
[1674007392946,1.13237513,21242.0,21241.0,0.00989753]
[1674007393195,1.45382013,21242.0,21241.0,0.00989753]
[1674007394471,1.13237513,21242.0,21241.0,0.00989753]
[1674007396259,0.66161013,21242.0,21241.0,0.00989753]
[1674007396505,0.66208703,21242.0,21241.0,0.00989753]
[1674007396753,0.66161013,21242.0,21241.0,0.00989753]
[1674007397494,0.66208703,21242.0,21241.0,0.00989753]
[1674007397720,0.66161013,21242.0,21241.0,0.00989753]
[1674007399550,0.026,21242.0,21241.0,0.00989753]
[1674007400076,0.026,21242.0,21241.0,0.12925753]
[1674007400353,0.026,21242.0,21241.0,0.21341953]
[1674007400600,0.026,21242.0,21241.0,0.09405953]
[1674007401096,0.026,21242.0,21241.0,0.00989753]
[1674007401338,0.026,21242.0,21241.0,0.68420653]
[1674007401628,0.026,21242.0,21241.0,1.15499353]
[1674007402104,0.487918,21245.0,21241.0,1.14899353]
[1674007402362,0.083,21242.0,21241.0,1.20124338]
[1674007402618,0.0172,21245.0,21241.0,1.44899053]
[1674007402899,0.008,21242.0,21241.0,1.50724338]
[1674007403160,0.008,21242.0,21241.0,1.03663053]
[1674007403441,0.487901,21245.0,21241.0,1.02963053]
[1674007403747,0.008,21242.0,21241.0,1.08788338]
[1674007403999,0.008,21242.0,21241.0,0.95247153]
[1674007404290,0.487901,21245.0,21241.0,1.02963053]
[1674007404564,0.487901,21245.0,21242.0,0.41541185]
[1674007404565,0.495901,21245.0,21242.0,0.41541185]
[1674007405121,0.487901,21245.0,21242.0,0.41541185]
[1674007405857,0.0172,21245.0,21242.0,0.88617385]
[1674007406113,0.0172,21245.0,21243.0,0.08415]
[1674007406386,0.0172,21245.0,21243.0,0.13541185]
[1674007406643,0.0172,21245.0,21244.0,0.63794662]
[1674007406949,0.0172,21245.0,21244.0,1.87938862]
[1674007407173,0.0172,21245.0,21244.0,1.57938862]
[1674007407434,0.01712185,21245.0,21244.0,1.87938862]
[1674007407947,0.10012185,21245.0,21244.0,1.58038862]
[1674007409535,0.10012185,21245.0,21244.0,1.03426762]
[1674007409798,0.10012185,21245.0,21244.0,0.95012462]
[1674007410348,0.10012185,21245.0,21244.0,0.47940362]
[1674007411411,0.10059875,21245.0,21244.0,0.47940362]
[1674007411694,0.10012185,21245.0,21244.0,0.47940362]
[1674007411950,0.10012185,21245.0,21244.0,0.001]
[1674007411951,0.57081985,21245.0,21244.0,0.001]
[1674007412445,0.89226485,21245.0,21244.0,0.001]
[1674007412448,0.89274175,21245.0,21244.0,0.001]
[1674007412700,1.36343975,21245.0,21244.0,0.001]
[1674007415871,0.42204375,21245.0,21244.0,0.001]
[1674007416143,1.37193975,21245.0,21244.0,0.001]
[1674007416409,2.50607637,21245.0,21244.0,0.001]
[1674007416697,2.58147637,21245.0,21244.0,0.001]
[1674007416954,1.70999464,21245.0,21244.0,0.001]
[1674007422586,3.46364595,21245.0,21244.0,0.001]
[1674007422871,3.79000272,21245.0,21244.0,0.001]
[1674007423697,0.15,21244.0,21241.0,0.00389753]
[1674007423964,1.92945091,21243.0,21241.0,0.00389753]
[1674007424245,0.471445,21242.0,21241.0,0.00389753]
[1674007424517,1.421475,21242.0,21241.0,0.00389753]
[1674007424791,2.68491293,21242.0,21241.0,0.00389753]
[1674007425050,2.31575383,21242.0,21241.0,0.00389753]
[1674007425340,1.78805627,21242.0,21241.0,0.00389753]
[1674007425862,1.78805627,21242.0,21241.0,0.00489753]
[1674007426090,1.6190409,21242.0,21241.0,0.00389753]
[1674007426377,1.7150409,21242.0,21241.0,0.00389753]
[1674007426644,2.0150409,21242.0,21241.0,0.00389753]
[1674007427459,1.7150409,21242.0,21241.0,0.00389753]
[1674007427693,1.88405627,21242.0,21241.0,0.00389753]
[1674007427997,1.88453317,21242.0,21241.0,0.00389753]
[1674007428273,1.7155178,21242.0,21241.0,0.00389753]
[1674007430945,1.5655178,21242.0,21241.0,0.00383558]
[1674007431496,1.45284089,21242.0,21241.0,0.00383558]
[1674007432094,1.37754089,21242.0,21241.0,0.00383558]
[1674007433200,1.4902178,21242.0,21241.0,0.00383558]
[1674007434953,1.6402178,21242.0,21241.0,0.00383558]
[1674007435159,1.4902178,21242.0,21241.0,0.00383558]
[1674007435691,1.37754089,21242.0,21241.0,0.00383558]
[1674007436759,1.65923317,21242.0,21241.0,0.00383558]
[1674007437053,1.95918576,21242.0,21241.0,0.00383558]
[1674007437275,2.19073322,21242.0,21241.0,0.00383558]
[1674007437534,2.02171785,21242.0,21241.0,0.00383558]
[1674007438054,1.93987539,21242.0,21241.0,0.00383558]
[1674007438898,1.63987539,21242.0,21241.0,0.00383558]
[1674007439384,1.52724589,21242.0,21241.0,0.00383558]
[1674007440467,1.63987539,21242.0,21241.0,0.00383558]
[1674007440987,1.52724589,21242.0,21241.0,0.00383558]
[1674007441514,1.63987539,21242.0,21241.0,0.00383558]
[1674007441768,2.10889076,21242.0,21241.0,0.00383558]
[1674007442292,1.93987539,21242.0,21241.0,0.00383558]
[1674007443065,3.00093116,21242.0,21241.0,0.00383558]
[1674007443906,2.10882886,21242.0,21241.0,0.00383558]
[1674007444167,2.22161508,21242.0,21241.0,0.00383558]
[1674007444421,1.69626126,21242.0,21241.0,0.00383558]
[1674007444688,1.80882877,21242.0,21241.0,0.00383558]
[1674007445131,1.9398134,21242.0,21241.0,0.00383558]
[1674007445133,1.6398134,21242.0,21241.0,0.00383558]
[1674007445394,1.52724589,21242.0,21241.0,0.00383558]
[1674007445651,1.37724589,21242.0,21241.0,0.00383558]
[1674007446760,1.52724589,21242.0,21241.0,0.00383558]
[1674007447273,1.4898134,21242.0,21241.0,0.00383558]
[1674007447558,1.37724589,21242.0,21241.0,0.00383558]
[1674007448577,1.05609589,21242.0,21241.0,0.00383558]
[1674007448856,1.04603,21242.0,21241.0,0.00383558]
[1674007449933,1.04177,21242.0,21241.0,0.00383558]
[1674007450213,1.47578551,21242.0,21241.0,0.00383558]
[1674007450451,2.54344172,21242.0,21241.0,0.00383558]
[1674007451231,2.68896683,21242.0,21241.0,0.00383558]
[1674007451540,2.31820701,21242.0,21241.0,0.00374103]
[1674007451747,2.31844954,21242.0,21241.0,0.00374103]
[1674007452257,1.4759764,21242.0,21241.0,0.00374103]
[1674007452521,1.1550053,21242.0,21241.0,0.00374103]
[1674007453050,1.1545284,21242.0,21241.0,0.00374103]
[1674007453307,1.1550053,21242.0,21241.0,0.00374103]
[1674007453571,1.4764533,21242.0,21241.0,0.00374103]
[1674007453814,1.4759764,21242.0,21241.0,0.00374103]
[1674007454118,1.1545284,21242.0,21241.0,0.00374103]
[1674007454336,0.562505,21242.0,21241.0,0.00374103]
[1674007454866,0.5629819,21242.0,21241.0,0.08819803]
[1674007455130,0.5629819,21242.0,21241.0,0.00374103]
[1674007455656,0.0964769,21242.0,21241.0,0.00374103]
[1674007456191,0.096,21242.0,21241.0,0.00374103]
[1674007456457,0.566765,21242.0,21241.0,0.00374103]
[1674007458257,1.31942288,21242.0,21241.0,0.00374103]
[1674007458547,1.64087088,21242.0,21241.0,0.00374103]
[1674007459050,1.1502884,21242.0,21241.0,0.00374103]
[1674007459358,1.1507653,21242.0,21241.0,0.00374103]
[1674007459619,1.1502884,21242.0,21241.0,0.00374103]
[1674007460447,1.1507653,21242.0,21241.0,0.00374103]
[1674007460738,1.1502884,21242.0,21241.0,0.00374103]
[1674007461534,1.1507653,21242.0,21241.0,0.00374103]
[1674007461801,1.4722133,21242.0,21241.0,0.00374103]
[1674007462085,1.63195668,21242.0,21241.0,0.00374103]
[1674007462374,1.84064628,21242.0,21241.0,0.00374103]
[1674007462670,1.63206586,21242.0,21241.0,0.00374103]
[1674007463178,2.42427886,21242.0,21241.0,0.00374103]
[1674007463656,1.98996328,21242.0,21241.0,0.00374103]
[1674007463950,2.31141128,21242.0,21241.0,0.00374103]
[1674007464487,1.98996328,21242.0,21241.0,0.00374103]
[1674007464883,2.31141128,21242.0,21241.0,0.00374103]
[1674007465098,2.10283036,21242.0,21241.0,0.00374103]
[1674007465322,2.42427836,21242.0,21241.0,0.00374103]
[1674007465545,1.64097956,21242.0,21241.0,0.00374103]
[1674007465764,1.15039708,21242.0,21241.0,0.00374103]
[1674007465981,1.31953156,21242.0,21241.0,0.00374103]
[1674007467509,2.10563019,21242.0,21241.0,0.00374103]
[1674007468176,1.31953156,21242.0,21241.0,0.00374103]
[1674007469166,2.10605848,21242.0,21241.0,0.00374103]
[1674007469391,2.66210314,21242.0,21241.0,0.00374103]
[1674007469618,2.8495327,21242.0,21241.0,0.00374103]
[1674007469834,2.56761484,21242.0,21241.0,0.00374103]
[1674007470290,3.46153826,21242.0,21241.0,0.00374103]
[1674007470518,3.47005916,21242.0,21241.0,0.00374103]
[1674007470750,3.06375724,21242.0,21241.0,0.00374103]
[1674007471231,3.47005916,21242.0,21241.0,0.00374103]
[1674007471449,2.72583574,21242.0,21241.0,0.00374103]
[1674007471684,3.47005916,21242.0,21241.0,0.00374103]
[1674007471899,3.94726085,21242.0,21241.0,0.00374103]
[1674007472123,3.60933935,21242.0,21241.0,0.00374103]
[1674007473258,3.52809455,21242.0,21241.0,0.00374103]
[1674007473934,3.86601605,21242.0,21241.0,0.00364067]
[1674007474373,3.52809455,21242.0,21241.0,0.00364067]
[1674007474590,3.86601605,21242.0,21241.0,0.00364067]
[1674007475053,3.12179263,21242.0,21241.0,0.00364067]
[1674007475276,2.82179263,21242.0,21241.0,0.00364067]
[1674007475500,3.12179263,21242.0,21241.0,0.00364067]
[1674007476396,3.10382283,21242.0,21241.0,0.00364067]
[1674007476583,3.10382538,21242.0,21241.0,0.00364067]
[1674007476820,3.40382538,21242.0,21241.0,0.00364067]
[1674007477020,2.82179263,21242.0,21241.0,0.00364067]
[1674007477283,3.02912105,21242.0,21241.0,0.00364067]
[1674007477504,3.55473827,21242.0,21241.0,0.00364067]
[1674007480244,5.32706888,21242.0,21241.0,0.00364067]
[1674007480465,5.23106888,21242.0,21241.0,0.00327661]
[1674007480699,5.32106888,21242.0,21241.0,0.00327661]
[1674007481618,4.35786678,21242.0,21241.0,0.00327661]
[1674007481840,3.86104018,21242.0,21241.0,0.00327661]
[1674007482074,2.81649263,21242.0,21241.0,0.00327661]
[1674007482303,3.15473826,21242.0,21241.0,0.00327661]
[1674007482975,2.81649263,21242.0,21241.0,0.00327661]
[1674007483223,3.09834324,21242.0,21241.0,0.00327661]
[1674007483442,3.02294324,21242.0,21241.0,0.00327661]
[1674007483962,3.24842275,21242.0,21241.0,0.00327661]
[1674007484404,2.96657214,21242.0,21241.0,0.00327661]
[1674007484641,2.85920702,21242.0,21241.0,0.00327661]
[1674007484870,2.22116287,21242.0,21241.0,0.00327661]
[1674007485333,2.54261087,21242.0,21241.0,0.00327661]
[1674007485948,1.33086769,21242.0,21241.0,0.00327661]
[1674007486195,2.21571463,21242.0,21241.0,0.00327661]
[1674007486404,2.5371623,21242.0,21241.0,0.00327661]
[1674007486616,2.31167976,21242.0,21241.0,0.00327661]
[1674007487074,1.33086578,21242.0,21241.0,0.00327661]
[1674007487533,1.16176025,21242.0,21241.0,0.00327661]
[1674007488197,1.24086578,21242.0,21241.0,0.00327661]
[1674007488587,1.16176025,21242.0,21241.0,0.00327661]
[1674007488843,1.24086578,21242.0,21241.0,0.00327661]
[1674007489127,1.57530167,21242.0,21241.0,0.00327661]
[1674007489375,2.23490158,21242.0,21241.0,0.00327661]
[1674007489647,2.78182909,21242.0,21241.0,0.00327661]
[1674007489896,1.89675444,21242.0,21241.0,0.00327661]
[1674007490179,1.57530644,21242.0,21241.0,0.00327661]
[1674007490427,2.46741653,21242.0,21241.0,0.00327661]
[1674007490676,2.78886453,21242.0,21241.0,0.00327661]
[1674007490933,1.89675512,21242.0,21241.0,0.00327661]
[1674007491178,1.57530712,21242.0,21241.0,0.00327661]
[1674007491952,1.33087123,21242.0,21241.0,0.00327661]
[1674007492224,1.1527679,21242.0,21241.0,0.00327661]
[1674007492751,1.04003,21242.0,21241.0,0.00327661]
[1674007493037,0.569265,21242.0,21241.0,0.08773361]
[1674007493573,0.569265,21242.0,21241.0,0.00327661]
[1674007494366,0.569265,21242.0,21241.0,0.08773361]
[1674007494620,0.569265,21242.0,21241.0,0.00327661]
[1674007495963,0.5697419,21242.0,21241.0,0.00327661]
[1674007496505,1.0405069,21242.0,21241.0,0.00327661]
[1674007500498,0.5697419,21242.0,21241.0,0.00327661]
[1674007500816,1.0405069,21242.0,21241.0,0.00327661]
[1674007501026,1.1532448,21242.0,21241.0,0.00327661]
[1674007501568,1.0405069,21242.0,21241.0,0.00327661]
[1674007501825,0.5697419,21242.0,21241.0,0.00327661]
[1674007502084,0.569265,21242.0,21241.0,0.00327661]
[1674007502610,1.04003,21242.0,21241.0,0.00327661]
[1674007502891,1.1527679,21242.0,21241.0,0.00327661]
[1674007503145,1.64332143,21242.0,21241.0,0.00327661]
[1674007503452,1.64332143,21242.0,21241.0,0.00318699]
[1674007503640,1.4742159,21242.0,21241.0,0.00318699]
[1674007503944,1.1527679,21242.0,21241.0,0.00318699]
[1674007504472,1.0034509,21242.0,21241.0,0.00318699]
[1674007504847,2.32587473,21242.0,21241.0,0.00318699]
[1674007505109,2.55135424,21242.0,21241.0,0.00318699]
[1674007505624,2.33456482,21242.0,21241.0,0.00318699]
[1674007506844,2.3909388,21242.0,21241.0,0.00318699]
[1674007507100,2.70053719,21242.0,21241.0,0.00318699]
[1674007507357,2.56006539,21242.0,21241.0,0.00318699]
[1674007508632,2.33458588,21242.0,21241.0,0.00318699]
[1674007509145,2.44734121,21242.0,21241.0,0.00318699]
[1674007509721,2.56006539,21242.0,21241.0,0.00318699]
[1674007510008,2.56007472,21242.0,21241.0,0.00318699]
[1674007510265,2.41868813,21242.0,21241.0,0.00318699]
[1674007510518,2.70053874,21242.0,21241.0,0.00318699]
[1674007511051,2.41868813,21242.0,21241.0,0.00318699]
[1674007511361,2.44734829,21242.0,21241.0,0.00318699]
[1674007511616,2.5600724,21242.0,21241.0,0.00318699]
[1674007511867,2.33459289,21242.0,21241.0,0.00318699]
[1674007513191,2.5600724,21242.0,21241.0,0.00318699]
[1674007515041,2.44688429,21242.0,21241.0,0.00318699]
[1674007515301,1.16101149,21242.0,21241.0,0.00318699]
[1674007515561,1.04824319,21242.0,21241.0,0.00318699]
[1674007515818,1.04003,21242.0,21241.0,0.00318699]
[1674007517723,1.04003,21242.0,21241.0,0.08764399]
[1674007518761,1.0405069,21242.0,21241.0,0.00318699]
[1674007519845,1.1532752,21242.0,21241.0,0.00318699]
[1674007520369,1.0405069,21242.0,21241.0,0.00318699]
[1674007521759,1.1532752,21242.0,21241.0,0.00318699]
[1674007523126,1.1364331,21242.0,21241.0,0.00318699]
[1674007523430,1.1359562,21242.0,21241.0,0.00318699]
[1674007523939,1.1359562,21242.0,21241.0,0.45407593]
[1674007523940,0.0985,21242.0,21241.0,0.45407593]
[1674007524210,0.09,21242.0,21241.0,0.61393293]
[1674007525790,0.09,21242.0,21241.0,0.52947593]
[1674007526322,0.09,21242.0,21241.0,0.61393293]
[1674007526878,1.0320069,21242.0,21241.0,0.00318699]
[1674007527129,1.1442983,21242.0,21241.0,0.00318699]
[1674007527900,0.560765,21242.0,21241.0,0.00318699]
[1674007528432,1.03153,21242.0,21241.0,0.00318699]
[1674007528692,1.1442983,21242.0,21241.0,0.00318699]
[1674007529199,1.1447752,21242.0,21241.0,0.00318699]
[1674007529726,2.4059387,21242.0,21241.0,0.00318699]
[1674007530015,1.1447752,21242.0,21241.0,0.00318699]
[1674007530544,1.4662232,21242.0,21241.0,0.00318699]
[1674007531083,0.560765,21242.0,21241.0,0.00318699]
[1674007531874,0.560765,21242.0,21239.0,0.48088891]
[1674007532134,1.1442983,21242.0,21239.0,0.54688758]
[1674007532675,1.32212661,21242.0,21239.0,0.54688758]
[1674007532931,0.0085,21241.0,21237.0,0.95256392]
[1674007533188,0.470811,21240.0,21237.0,0.0754]
[1674007533460,0.66153695,21240.0,21239.0,0.001]
[1674007533721,0.96034519,21240.0,21239.0,0.001]
[1674007533997,1.28179319,21240.0,21239.0,0.001]
[1674007534251,2.80053168,21240.0,21239.0,0.001]
[1674007534510,2.59544926,21240.0,21239.0,0.001]
[1674007534803,2.42679256,21240.0,21239.0,0.001]
[1674007535057,2.37058231,21240.0,21239.0,0.001]
[1674007535602,2.37058231,21240.0,21237.0,0.002]
[1674007535603,2.02497993,21240.0,21237.0,0.002]
[1674007535604,1.08656233,21240.0,21237.0,0.002]
[1674007535870,1.15456233,21240.0,21239.0,0.001]
[1674007536385,1.15408543,21240.0,21239.0,0.001]
[1674007536708,1.15456233,21240.0,21239.0,0.001]
[1674007536917,1.04123981,21240.0,21239.0,0.001]
[1674007537175,1.06295817,21240.0,21239.0,0.001]
[1674007537439,1.17580379,21240.0,21239.0,0.001]
[1674007537708,0.59214917,21240.0,21239.0,0.001]
[1674007538553,0.57342398,21240.0,21239.0,0.0764]
[1674007538837,0.10271836,21240.0,21239.0,0.0764]
[1674007540682,0.10271836,21240.0,21239.0,0.16087]
[1674007541491,1.04481326,21240.0,21239.0,0.0764]
[1674007541752,1.05331326,21240.0,21239.0,0.001]
[1674007542011,1.05283636,21240.0,21239.0,0.001]
[1674007542275,1.05331326,21240.0,21239.0,0.001]
[1674007542540,1.05283636,21240.0,21239.0,0.001]
[1674007542841,0.10271836,21240.0,21239.0,0.12036]
[1674007543393,0.10271836,21240.0,21239.0,0.20483]
[1674007543671,0.10271836,21240.0,21239.0,0.675661]
[1674007544214,0.10271836,21240.0,21239.0,1.146492]
[1674007544483,0.10271836,21240.0,21239.0,0.675661]
[1674007544751,0.10271836,21240.0,21239.0,0.751061]
[1674007545263,0.10271836,21240.0,21239.0,0.16087]
[1674007554519,0.10271836,21240.0,21239.0,0.0764]
[1674007554797,0.10271836,21240.0,21239.0,0.16087]
[1674007555817,0.10271836,21240.0,21239.0,0.08547]
[1674007566622,0.57352736,21240.0,21239.0,0.08547]
[1674007569509,0.57400426,21240.0,21239.0,0.001]
[1674007569781,1.04481326,21240.0,21239.0,0.001]
[1674007570063,1.04433636,21240.0,21239.0,0.001]
[1674007570585,1.04481326,21240.0,21239.0,0.001]
[1674007570843,1.34362833,21240.0,21239.0,0.00091195]
[1674007571095,1.66507633,21240.0,21239.0,0.00091195]
[1674007571357,3.13754962,21240.0,21239.0,0.00091195]
[1674007571623,3.58804962,21240.0,21239.0,0.00091195]
[1674007571906,3.58804962,21240.0,21235.0,0.00353194]
[1674007571907,2.9997195,21240.0,21235.0,0.00353194]
[1674007572150,0.18749267,21238.0,21235.0,0.00353194]
[1674007572449,1.7345529,21237.0,21235.0,0.00353194]
[1674007572718,1.4131049,21237.0,21235.0,0.00353194]
[1674007573308,0.02418572,21236.0,21235.0,0.00353194]
[1674007573610,0.96598172,21236.0,21235.0,0.00453194]
[1674007574128,0.973922,21236.0,21235.0,0.00453194]
[1674007574388,0.973922,21236.0,21235.0,0.00353194]
[1674007574664,0.983922,21236.0,21235.0,0.00353194]
[1674007575474,0.992922,21236.0,21235.0,0.00353194]
[1674007576256,1.001422,21236.0,21235.0,0.00353194]
[1674007581239,0.982422,21236.0,21235.0,0.00353194]
[1674007581493,1.063422,21236.0,21235.0,0.00353194]
[1674007581747,0.982422,21236.0,21235.0,0.00353194]
[1674007582000,1.073422,21236.0,21235.0,0.00353194]
[1674007587675,1.14980559,21236.0,21235.0,0.00353194]
[1674007587940,2.12136277,21236.0,21235.0,0.00353194]
[1674007588203,2.89226077,21236.0,21235.0,0.00353194]
[1674007588480,3.00505344,21236.0,21235.0,0.00353194]
[1674007588977,2.91405344,21236.0,21235.0,0.00353194]
[1674007589244,3.23576858,21236.0,21235.0,0.00353194]
[1674007589498,3.71297027,21236.0,21235.0,0.00353194]
[1674007589757,3.0176775,21236.0,21235.0,0.00353194]
[1674007590048,2.90488483,21236.0,21235.0,0.00353194]
[1674007591055,3.3003137,21236.0,21235.0,0.00353194]
[1674007591585,2.67416969,21236.0,21235.0,0.00353194]
[1674007592100,2.56396969,21236.0,21235.0,0.00353194]
[1674007592385,2.56396969,21236.0,21235.0,0.00341319]
[1674007592634,2.086768,21236.0,21235.0,0.00341319]
[1674007593138,1.54432,21236.0,21235.0,0.00341319]
[1674007593674,1.76592,21236.0,21235.0,0.00341319]
[1674007593917,2.087368,21236.0,21235.0,0.00341319]
[1674007594681,1.865768,21236.0,21235.0,0.00341319]
[1674007594939,1.54432,21236.0,21235.0,0.00341319]
[1674007595276,1.865768,21236.0,21235.0,0.00341319]
[1674007595462,1.54432,21236.0,21235.0,0.00341319]
[1674007595721,1.865768,21236.0,21235.0,0.00341319]
[1674007596216,1.76912,21236.0,21235.0,0.00341319]
[1674007596523,2.56776969,21236.0,21235.0,0.00341319]
[1674007596739,2.88812368,21236.0,21235.0,0.00341319]
[1674007597806,3.30091635,21236.0,21235.0,0.00341319]
[1674007598057,2.56776969,21236.0,21235.0,0.00341319]
[1674007598315,2.41776969,21236.0,21235.0,0.00341319]
[1674007599121,1.54432,21236.0,21235.0,0.00341319]
[1674007599906,1.073422,21236.0,21235.0,0.00341319]
[1674007603846,1.39487,21236.0,21235.0,0.00341319]
[1674007604367,1.76967,21236.0,21235.0,0.00341319]
[1674007604626,2.03246267,21236.0,21235.0,0.00341319]
[1674007604878,1.58246267,21236.0,21235.0,0.00341319]
[1674007605417,1.073422,21236.0,21235.0,0.00341319]
[1674007608078,1.18621467,21236.0,21235.0,0.00341319]
[1674007608355,1.35540368,21236.0,21235.0,0.00341319]
[1674007608609,1.50766267,21236.0,21235.0,0.00341319]
[1674007608878,1.18621467,21236.0,21235.0,0.00341319]
[1674007609151,1.097143,21236.0,21235.0,0.00341319]
[1674007609406,1.20993567,21236.0,21235.0,0.00341319]
[1674007610139,2.25935611,21236.0,21235.0,0.00341319]
[1674007610391,2.58080411,21236.0,21235.0,0.00341319]
[1674007610660,2.69359679,21236.0,21235.0,0.00341319]
[1674007611953,2.76839679,21236.0,21235.0,0.00341319]
[1674007612197,2.59920778,21236.0,21235.0,0.00341319]
[1674007612718,2.54277487,21236.0,21235.0,0.00341319]
[1674007613977,2.76836022,21236.0,21235.0,0.00341319]
[1674007614247,2.93478315,21236.0,21235.0,0.00341319]
[1674007615006,3.14127887,21236.0,21235.0,0.00341319]
[1674007616302,2.93475344,21236.0,21235.0,0.00331304]
[1674007618045,2.76836885,21236.0,21235.0,0.00331304]
[1674007618326,2.76836885,21236.0,21235.0,0.13872489]
[1674007618327,2.43898057,21236.0,21235.0,0.13872489]
[1674007618654,1.37120183,21236.0,21235.0,0.00331304]
[1674007619109,2.24726598,21236.0,21235.0,0.00331304]
[1674007619363,1.37120183,21236.0,21235.0,0.00331304]
[1674007619905,1.20201105,21236.0,21235.0,0.00331304]
[1674007620170,1.37120183,21236.0,21235.0,0.00331304]
[1674007620424,1.20201105,21236.0,21235.0,0.00331304]
[1674007621465,1.20171417,21236.0,21235.0,0.00331304]
[1674007623241,1.15570584,21236.0,21235.0,0.00331304]
[1674007623505,1.15570584,21236.0,21235.0,0.08781004]
[1674007624274,1.15570584,21236.0,21235.0,0.00331304]
[1674007625047,1.15570584,21236.0,21235.0,0.00386626]
[1674007625312,1.15570584,21236.0,21235.0,0.00331304]
[1674007625568,1.26851417,21236.0,21235.0,0.00331304]
[1674007626661,1.15570584,21236.0,21235.0,0.00331304]
[1674007627182,0.68480784,21236.0,21235.0,0.00331304]
[1674007627444,0.21390984,21236.0,21235.0,0.00386626]
[1674007627967,1.15570584,21236.0,21235.0,0.00331304]
[1674007628494,0.68480784,21236.0,21235.0,0.00331304]
[1674007628975,0.68480784,21236.0,21235.0,0.08781004]
[1674007630304,0.12290984,21236.0,21235.0,0.08781004]
[1674007630528,0.12290984,21236.0,21235.0,0.08881004]
[1674007630783,0.20490984,21236.0,21235.0,0.08881004]
[1674007631815,0.20490984,21236.0,21235.0,0.08924271]
[1674007634645,0.20490984,21236.0,21235.0,0.08881004]
[1674007634900,0.20490984,21236.0,21235.0,0.00431304]
[1674007634901,0.67580784,21236.0,21235.0,0.00431304]
[1674007637593,1.14670584,21236.0,21235.0,0.00431304]
[1674007637855,1.90015295,21236.0,21235.0,0.00431304]
[1674007638137,2.67190399,21236.0,21235.0,0.00431304]
[1674007638387,2.89745963,21236.0,21235.0,0.00431304]
[1674007638902,1.90018482,21236.0,21235.0,0.00431304]
[1674007639180,3.13819261,21236.0,21235.0,0.00431304]
[1674007639436,3.53371606,21236.0,21235.0,0.00431304]
[1674007639949,3.72893542,21236.0,21235.0,0.00431304]
[1674007640452,3.64693542,21236.0,21235.0,0.00331304]
[1674007640742,3.81551414,21236.0,21235.0,0.00331304]
[1674007640950,4.09753508,21236.0,21235.0,0.00331304]
[1674007641748,4.49327695,21236.0,21235.0,0.00331304]
[1674007642077,4.55330682,21236.0,21235.0,0.00331304]
[1674007642240,4.89155245,21236.0,21235.0,0.00331304]
[1674007642496,4.55330682,21236.0,21235.0,0.00331304]
[1674007643006,4.15756495,21236.0,21235.0,0.00331304]
[1674007643265,4.5536019,21236.0,21235.0,0.00331304]
[1674007644052,4.15756495,21236.0,21235.0,0.00331304]
[1674007645382,4.43946634,21236.0,21235.0,0.00331304]
[1674007645676,4.66497854,21236.0,21235.0,0.00331304]
[1674007646150,4.66497854,21236.0,21235.0,0.00324015]
[1674007646413,4.66496393,21236.0,21235.0,0.00324015]
[1674007647671,4.43946634,21236.0,21235.0,0.00324015]
[1674007648185,4.6649444,21236.0,21235.0,0.00324015]
[1674007649204,4.19084223,21236.0,21235.0,0.00324015]
[1674007649980,4.07984223,21236.0,21235.0,0.00324015]
[1674007650524,3.79794084,21236.0,21235.0,0.00324015]
[1674007650789,3.85436417,21236.0,21235.0,0.00324015]
[1674007651056,4.24993915,21236.0,21235.0,0.00324015]